fUSD/lending_fUSD_20250324
["ID","MTS","AMOUNT","RATE_DAILY","PERIOD"]
[356609120,1742814633295,-150.0,0.00024643,2]
[356609122,1742814633305,-150.0,0.00024645,2]
[356609124,1742814633314,-150.0,0.00024646,2]
[356609126,1742814633324,-150.0,0.00024647,2]
[356609128,1742814633333,-150.0,0.00024648,2]
[356609130,1742814633343,-150.0,0.00024651,2]
[356609132,1742814633355,-434.38600223,0.00024652,2]
[356609134,1742814633366,-150.0,0.00024653,2]
[356609136,1742814633375,-150.0,0.00024657,2]
[356609138,1742814633385,-150.0,0.00024657,2]
[356609140,1742814633395,-1000.0,0.00024657,2]
[356609142,1742814633405,-1000.0,0.00024658,2]
[356609144,1742814633414,-150.0,0.00024659,2]
[356609146,1742814633424,-181.5438865,0.00024661,2]
[356609148,1742814633433,-150.0,0.00024663,2]
[356609150,1742814633443,-150.0,0.00024665,2]
[356609152,1742814633453,-150.0,0.00024666,2]
[356609154,1742814633462,-150.0,0.00024667,2]
[356609156,1742814633472,-150.0,0.00024667,2]
[356609158,1742814633482,-150.0,0.00024669,2]
[356609160,1742814633492,-150.0,0.00024672,2]
[356609162,1742814633502,-150.0,0.00024673,2]
[356609164,1742814633511,-150.0,0.00024674,2]
[356609166,1742814633521,-150.0,0.00024679,2]
[356609168,1742814633531,-1000.0,0.00024679,2]
[356609170,1742814633540,-150.0,0.0002468,2]
[356609172,1742814633549,-150.0,0.00024684,2]
[356609174,1742814633559,-150.0,0.00024688,2]
[356609176,1742814633568,-150.0,0.00024688,2]
[356609178,1742814633578,-150.0,0.0002469,2]
[356609180,1742814633587,-150.0,0.00024692,2]
[356609182,1742814633596,-150.0,0.00024697,2]
[356609184,1742814633606,-150.0,0.00024702,2]
[356609186,1742814633615,-150.0,0.00024702,2]
[356609188,1742814633624,-150.0,0.00024704,2]
[356609190,1742814633634,-1000.0,0.00024705,2]
[356609192,1742814633643,-150.0,0.00024707,2]
[356609194,1742814633652,-150.0,0.00024707,2]
[356609196,1742814633661,-150.0,0.00024709,2]
[356609197,1742814633670,-150.0,0.00024709,2]
[356609199,1742814633680,-150.0,0.00024709,2]
[356609201,1742814633689,-150.0,0.00024709,2]
[356609203,1742814633698,-150.0,0.00024714,2]
[356609205,1742814633707,-150.0,0.00024716,2]
[356609207,1742814633717,-1000.0,0.00024718,2]
[356609209,1742814633726,-150.0,0.00024723,2]
[356609211,1742814633736,-150.0,0.00024724,2]
[356609213,1742814633745,-150.0,0.00024726,2]
[356609215,1742814633754,-150.0,0.00024728,2]
[356609217,1742814633763,-1000.0,0.00024728,2]
[356609219,1742814633773,-150.0,0.00024731,2]
[356609221,1742814633782,-150.0,0.00024732,2]
[356609223,1742814633792,-1000.0,0.00024732,2]
[356609225,1742814633801,-150.0,0.00024733,2]
[356609227,1742814633811,-150.0,0.00024735,2]
[356609229,1742814633821,-150.0,0.00024737,2]
[356609231,1742814633830,-1000.0,0.00024738,2]
[356609233,1742814633839,-150.0,0.0002474,2]
[356609235,1742814633848,-150.0,0.00024742,2]
[356609237,1742814633858,-1000.0,0.00024742,2]
[356609238,1742814633868,-150.0,0.0002475,2]
[356609239,1742814633877,-150.0,0.00024752,2]
[356609240,1742814633886,-1000.0,0.00024757,2]
[356609241,1742814633896,-150.0,0.00024757,2]
[356609242,1742814633905,-1000.0,0.00024766,2]
[356609243,1742814633915,-150.0,0.00024767,2]
[356609244,1742814633924,-150.0,0.00024772,2]
[356609245,1742814633934,-150.0,0.00024776,2]
[356609246,1742814633944,-1000.0,0.00024782,2]
[356609247,1742814633954,-150.0,0.00024785,2]
[356609248,1742814633964,-150.0,0.00024787,2]
[356609249,1742814633973,-150.0,0.00024789,2]
[356609250,1742814633982,-150.0,0.0002479,2]
[356609251,1742814633992,-150.0,0.0002479,2]
[356609252,1742814634001,-150.0,0.0002479,2]
[356609253,1742814634011,-150.0,0.0002479,2]
[356609254,1742814634021,-1163.98281204,0.0002479,2]
[356609255,1742814634031,-629.38787666,0.0002479,2]
[356609256,1742814634041,-5629.97470811,0.0002479,2]
[356609257,1742814634050,-150.0,0.00024792,2]
[356609258,1742814634059,-150.0,0.00024794,2]
[356609259,1742814634069,-150.0,0.00024794,2]
[356609260,1742814634078,-150.0,0.00024794,2]
[356609261,1742814634091,-1000.0,0.00024795,2]
[356609262,1742814634100,-150.0,0.00024797,2]
[356609263,1742814634109,-150.0,0.00024798,2]
[356609264,1742814634119,-4484.0955557,0.00024798,2]
[356609265,1742814634128,-478.2974529,0.00024798,2]
[356609266,1742814634138,-438.556196,0.00024798,2]
[356609267,1742814634148,-7616.3130867,0.00024798,2]
[356609268,1742814634158,-150.0,0.000248,2]
[356609269,1742814634167,-1000.0,0.000248,2]
[356609270,1742814634176,-150.0,0.00024801,2]
[356609271,1742814634186,-150.0,0.00024803,2]
[356609272,1742814634195,-150.0,0.00024807,2]
[356609273,1742814634204,-150.0,0.00024815,2]
[356609274,1742814634214,-150.0,0.00024816,2]
[356609275,1742814634223,-1000.0,0.00024817,2]
[356609276,1742814634232,-150.0,0.00024818,2]
[356609277,1742814634242,-150.0,0.0002482,2]
[356609278,1742814634251,-150.0,0.00024822,2]
[356609279,1742814634262,-150.0,0.00024823,2]
[356609280,1742814634272,-150.0,0.00024824,2]
[356609281,1742814634281,-1000.0,0.00024829,2]
[356609282,1742814634291,-150.0,0.00024832,2]
[356609283,1742814634300,-1000.0,0.00024833,2]
[356609284,1742814634310,-150.0,0.00024839,2]
[356609285,1742814634319,-150.0,0.00024843,2]
[356609286,1742814634329,-150.0,0.00024844,2]
[356609287,1742814634339,-150.0,0.00024847,2]
[356609288,1742814634348,-150.0,0.0002485,2]
[356609289,1742814634361,-150.0,0.00024853,2]
[356609290,1742814634371,-150.0,0.00024853,2]
[356609291,1742814634380,-150.0,0.00024853,2]
[356609292,1742814634389,-150.0,0.00024856,2]
[356609293,1742814634399,-196.18871547,0.00024856,2]
[356609294,1742814634409,-150.0,0.00024858,2]
[356609295,1742814634418,-150.0,0.00024862,2]
[356609296,1742814634427,-150.0,0.00024866,2]
[356609297,1742814634439,-150.0,0.00024872,2]
[356609298,1742814634449,-150.0,0.00024872,2]
[356609299,1742814634458,-1000.0,0.00024873,2]
[356609300,1742814634468,-154.65466867,0.00024875,20]
[356609301,1742814634477,-150.0,0.00024876,2]
[356609302,1742814634486,-150.0,0.00024879,2]
[356609303,1742814634495,-150.0,0.00024881,2]
[356609304,1742814634504,-150.0,0.00024883,2]
[356609305,1742814634513,-150.0,0.00024885,2]
[356609306,1742814634523,-150.0,0.00024886,2]
[356609307,1742814634532,-1000.0,0.00024886,2]
[356609308,1742814634541,-150.0,0.0002489,2]
[356609309,1742814634550,-150.0,0.00024891,2]
[356609310,1742814634559,-150.0,0.00024892,2]
[356609311,1742814634569,-150.0,0.00024893,2]
[356609312,1742814634578,-150.0,0.00024897,2]
[356609313,1742814634588,-150.0,0.00024899,2]
[356609314,1742814634598,-150.0,0.00024899,2]
[356609315,1742814634607,-980.01440854,0.000249,2]
[356609316,1742814634616,-201.91671852,0.00024931,2]
[356609317,1742814634625,-1752.3240458,0.00025,2]
[356609318,1742814634635,-175.0,0.00025,20]
[356609319,1742814634644,-600.0,0.00025,2]
[356609320,1742814634653,-58331.99,0.00025,2]
[356609321,1742814634662,-425.37009393,0.00025,60]
[356609322,1742814634671,-1107.5485595,0.00025,60]
[356609323,1742814634680,-1282.20843496,0.00025,60]
[356609324,1742814634689,-604.43,0.00025112,2]
[356609325,1742814634699,-2000.0,0.00025117,5]
[356609326,1742814634708,-154.43,0.00025829,120]
[356609327,1742814634718,-980.01440853,0.00025866,2]
[356609328,1742814634727,-2175.32,0.000259,2]
[356609329,1742814634736,-1924.28,0.000259,2]
[356609330,1742814634745,-37852.4,0.000259,2]
[356609331,1742814634754,-10655.8,0.000259,2]
[356609332,1742814634763,-9833.3,0.000259,2]
[356609333,1742814634772,-4753.24,0.000259,2]
[356609334,1742814634782,-162.0,0.00026,2]
[356609335,1742814634791,-150.0,0.00026027,2]
[356609336,1742814634800,-162.0,0.00026164,2]
[356609337,1742814634809,-151.0,0.0002623,2]
[356609338,1742814634818,-980.01440853,0.00026831,2]
[356609339,1742814634827,-218.55,0.00026849,2]
[356609340,1742814634836,-156.77,0.00026849,2]
[356609341,1742814634845,-907.22,0.00026849,2]
[356609342,1742814634854,-650.0,0.00027,2]
[356609343,1742814634863,-162.0,0.00027185,2]
[356609344,1742814634872,-1000.0,0.00027305,2]
[356609345,1742814634881,-604.43,0.00027376,2]
[356609346,1742814634890,-150.0,0.00027397,2]
[356609347,1742814634899,-900.0,0.00027397,2]
[356609348,1742814634908,-1017.64859628,0.00027397,2]
[356609349,1742814634917,-183.7,0.00027397,2]
[356609350,1742814634927,-586.92103254,0.00027599,2]
[356609351,1742814634936,-980.01440853,0.00027797,2]
[356609352,1742814634946,-234.94221065,0.00027836,2]
[356609353,1742814634955,-498.0,0.00027945,5]
[356609354,1742814634964,-234.94221065,0.00027945,2]
[356609355,1742814634973,-275.38,0.00028,2]
[356609356,1742814634982,-234.94221065,0.00028055,2]
[356609357,1742814634991,-234.94221065,0.00028192,2]
[356609358,1742814635000,-234.94221065,0.00028301,2]
[356609359,1742814635010,-234.94221065,0.00028411,2]
[356609360,1742814635019,-293.61837461,0.00028499,2]
[356609361,1742814635028,-234.94221065,0.00028521,2]
[356609362,1742814635037,-162.0,0.00028544,2]
[356609363,1742814635047,-234.94221065,0.0002863,2]
[356609364,1742814635056,-480.24979277,0.0002871,7]
[356609365,1742814635065,-234.94221065,0.0002874,2]
[356609366,1742814635074,-980.01440853,0.00028762,2]
[356609367,1742814635083,-150.0,0.00028767,2]
[356609368,1742814635092,-234.94221065,0.00028849,2]
[356609369,1742814635101,-234.94221065,0.00028959,2]
[356609370,1742814635110,-700.0,0.00029,2]
[356609371,1742814635119,-234.94221065,0.00029068,2]
[356609372,1742814635128,-154.43,0.00029518,120]
[356609373,1742814635137,-1000.0,0.00029602,2]
[356609374,1742814635147,-604.43,0.0002964,2]
[356609375,1742814635156,-980.01440853,0.00029728,2]
[356609376,1742814635165,-201.97457987,0.000299,2]
[356609377,1742814635174,-311.83517125,0.000299,2]
[356609378,1742814635183,-154.46,0.00029939,2]
[356609379,1742814635192,-167.03,0.00029939,2]
[356609380,1742814635201,-356.1,0.00029939,2]
[356609381,1742814635210,-154.86,0.00029939,2]
[356609382,1742814635219,-152.66,0.00029939,2]
[356609383,1742814635229,-454.98,0.00029939,2]
[356609384,1742814635238,-28991.047528,0.0002999,3]
[356609385,1742814635247,-450.0,0.0003,30]
[356609386,1742814635257,-202.81936293,0.0003,30]
[356609387,1742814635266,-56094.2338684,0.0003,2]
[356609388,1742814635275,-150.0,0.0003,2]
[356609389,1742814635284,-1000.0,0.0003,120]
[356609390,1742814635297,-3341.57793979,0.0003,2]
[356609391,1742814635306,-166.97,0.0003,20]
[356609392,1742814635315,-49135.29527305,0.0003,2]
[356609393,1742814635325,-1000.0,0.0003,2]
[356609394,1742814635335,-2710.24,0.0003,30]
[356609395,1742814635441,-198.037136,0.0003,2]
[356609396,1742814635450,-150.0,0.00030136,2]
[356609397,1742814635460,-1035.76872568,0.00030216,2]
[356609398,1742814635469,-214.7361732,0.00030357,30]
[356609399,1742814635478,-162.0,0.00030447,2]
[356609400,1742814635487,-980.01440853,0.00030693,2]
[356609401,1742814635496,-157.66,0.00030761,2]
[356609402,1742814635505,-392.1003,0.00030888,7]
[356609403,1742814635515,-881.09223251,0.000309,2]
[356609404,1742814635524,-1653.47464164,0.000309,3]
[356609405,1742814635533,-643.220078,0.00030973,5]
[356609406,1742814635542,-224.15,0.0003098,2]
[356609407,1742814635551,-32426.1308712,0.0003099,3]
[356609408,1742814635565,-479.43678095,0.0003099,3]
[356609410,1742814637897,-150.0,0.00024657,2]
[356609411,1742814637907,-150.0,0.00024658,2]
[356609412,1742814637917,-150.0,0.0002466,2]
[356609413,1742814637927,-150.0,0.00024662,2]
[356609414,1742814637936,-150.0,0.00024663,2]
[356609415,1742814637945,-150.0,0.00024664,2]
[356609416,1742814637956,-150.0,0.00024665,2]
[356609417,1742814637966,-34.11433608,0.00024693,2]
[356609418,1742814637977,-115.88566392,0.00024693,2]
[356609419,1742814637987,-150.0,0.00024695,2]
[356609420,1742814637995,-150.0,0.00024698,2]
[356609421,1742814638005,-150.0,0.00024699,2]
[356609422,1742814638014,-150.0,0.00024701,2]
[356609423,1742814638023,-150.0,0.00024703,2]
[356609424,1742814638032,-150.0,0.00024705,2]
[356609425,1742814638041,-150.0,0.00024707,2]
[356609426,1742814638050,-150.0,0.00024708,2]
[356609427,1742814638060,-150.0,0.00024711,2]
[356609428,1742814638069,-150.0,0.00024714,2]
[356609429,1742814638078,-150.0,0.00024717,2]
[356609430,1742814638087,-150.0,0.00024725,2]
[356609431,1742814638096,-150.0,0.0002473,2]
[356609432,1742814638106,-150.0,0.00024733,2]
[356609433,1742814638115,-150.0,0.00024734,2]
[356609434,1742814638124,-150.0,0.00024736,2]
[356609435,1742814638134,-150.0,0.00024739,2]
[356609436,1742814638143,-150.0,0.00024742,2]
[356609437,1742814638153,-150.0,0.00024743,2]
[356609438,1742814638163,-150.0,0.00024743,2]
[356609439,1742814638172,-150.0,0.00024743,2]
[356609440,1742814638181,-150.0,0.00024749,2]
[356609441,1742814638191,-150.0,0.0002475,2]
[356609442,1742814638201,-150.0,0.0002475,2]
[356609443,1742814638210,-150.0,0.00024751,2]
[356609444,1742814638219,-150.0,0.00024754,2]
[356609445,1742814638228,-150.0,0.00024755,2]
[356609446,1742814638237,-150.0,0.00024757,2]
[356609447,1742814638247,-150.0,0.00024764,2]
[356609448,1742814638256,-150.0,0.0002477,2]
[356609449,1742814638266,-150.0,0.00024772,2]
[356609450,1742814638276,-150.0,0.00024772,2]
[356609451,1742814638285,-150.0,0.00024774,2]
[356609452,1742814638294,-150.0,0.00024776,2]
[356609453,1742814638303,-150.0,0.00024778,2]
[356609454,1742814638313,-150.0,0.0002479,2]
[356609455,1742814638322,-150.0,0.00024796,2]
[356609456,1742814638332,-150.0,0.00024807,2]
[356609457,1742814638342,-150.0,0.00024811,2]
[356609458,1742814638351,-150.0,0.00024812,2]
[356609459,1742814638364,-150.0,0.00024818,2]
[356609460,1742814638373,-150.0,0.0002482,2]
[356609461,1742814638383,-150.0,0.00024823,2]
[356609462,1742814638393,-150.0,0.00024823,2]
[356609463,1742814638403,-150.0,0.00024825,2]
[356609464,1742814638412,-150.0,0.00024826,2]
[356609465,1742814638422,-150.0,0.00024827,2]
[356609466,1742814638432,-150.0,0.0002483,2]
[356609467,1742814638442,-150.0,0.00024831,2]
[356609468,1742814638452,-150.0,0.00024841,2]
[356609469,1742814638461,-150.0,0.00024842,2]
[356609470,1742814638471,-150.0,0.00024842,2]
[356609471,1742814638480,-150.0,0.00024844,2]
[356609472,1742814638489,-150.0,0.00024847,2]
[356609473,1742814638498,-150.0,0.00024849,2]
[356609474,1742814638507,-150.0,0.00024854,2]
[356609475,1742814638516,-150.0,0.00024859,2]
[356609476,1742814638526,-150.0,0.00024861,2]
[356609477,1742814638536,-150.0,0.00024864,2]
[356609478,1742814638546,-150.0,0.00024864,2]
[356609479,1742814638555,-150.0,0.00024868,2]
[356609480,1742814638565,-150.0,0.0002487,2]
[356609481,1742814638574,-150.0,0.00024871,2]
[356609482,1742814638583,-150.0,0.00024872,2]
[356609483,1742814638592,-150.0,0.00024873,2]
[356609484,1742814638601,-150.0,0.00024879,2]
[356609485,1742814638610,-150.0,0.00024879,2]
[356609486,1742814638619,-150.0,0.0002488,2]
[356609487,1742814638628,-150.0,0.00024881,2]
[356609488,1742814638637,-150.0,0.00024881,2]
[356609489,1742814638646,-150.0,0.00024883,2]
[356609490,1742814638656,-150.0,0.00024886,2]
[356609491,1742814638665,-150.0,0.00024888,2]
[356609492,1742814638675,-150.0,0.0002489,2]
[356609493,1742814638684,-150.0,0.00024892,2]
[356609494,1742814638694,-150.0,0.00024893,2]
[356609495,1742814638704,-150.0,0.00024897,2]
[356609496,1742814638713,-150.0,0.00024899,2]
[356609497,1742814638723,-150.0,0.00024899,2]
[356609498,1742814638732,-150.0,0.00024903,2]
[356609499,1742814638741,-150.0,0.00024903,2]
[356609500,1742814638751,-150.0,0.00024912,2]
[356609501,1742814638760,-150.0,0.00024914,2]
[356609502,1742814638769,-150.0,0.00024916,2]
[356609503,1742814638779,-150.0,0.00024918,2]
[356609504,1742814638788,-150.0,0.00024918,2]
[356609505,1742814638798,-150.0,0.0002492,2]
[356609506,1742814638807,-150.0,0.00024924,2]
[356609507,1742814638818,-150.0,0.00024927,2]
[356609508,1742814638828,-150.0,0.0002581,2]
[356609509,1742814638837,-150.0,0.00027744,2]
[356609510,1742814638846,-150.0,0.00027917,2]
[356609511,1742814638856,-276.686,0.00029838,2]
[356609512,1742814638865,-2124.60999394,0.0003099,3]
[356609513,1742814638878,-713.80528119,0.0003099,3]
[356609514,1742814638897,-150.0,0.00024758,2]
[356609515,1742814638907,-150.0,0.00024766,2]
[356609516,1742814638917,-29759.56939588,0.0003099,3]
[356609517,1742814638928,-425.81706451,0.0003099,3]
[356609518,1742814638947,-1007.95968956,0.0003099,3]
[356609519,1742814638958,-5022.80318517,0.0003099,3]
[356609520,1742814638969,-1016.7529703,0.0003099,3]
[356609521,1742814638983,-1163.10000005,0.0003099,3]
[356609522,1742814638994,-540.68,0.0003099,3]
[356609523,1742814639005,-1477.22,0.0003099,3]
[356609524,1742814639017,-563.31326908,0.0003099,3]
[356609525,1742814639029,-428.61941707,0.0003099,3]
[356609526,1742814639044,-150.0,0.00024676,2]
[356609527,1742814639054,-8624.14078934,0.0003099,3]
[356609534,1742814640079,-1116.0,0.0001423,2]
[356609535,1742814640090,-369.813,0.0001723,2]
[356609536,1742814640099,-150.0,0.00024683,2]
[356609537,1742814640108,-150.0,0.00024697,2]
[356609538,1742814640117,-150.0,0.00024709,2]
[356609539,1742814640127,-150.0,0.00024715,2]
[356609540,1742814640136,-150.0,0.00024737,2]
[356609541,1742814640145,-150.0,0.00024742,2]
[356609542,1742814640154,-150.0,0.00024745,2]
[356609543,1742814640163,-150.0,0.00024778,2]
[356609544,1742814640172,-150.0,0.00024779,2]
[356609545,1742814640184,-150.0,0.00024788,2]
[356609546,1742814640193,-150.0,0.00024807,2]
[356609547,1742814640203,-150.0,0.00024845,2]
[356609548,1742814640213,-150.0,0.00024898,2]
[356609549,1742814640222,-150.0,0.00025578,2]
[356609550,1742814640231,-150.0,0.00025585,2]
[356609551,1742814640240,-150.0,0.00025598,2]
[356609552,1742814640250,-150.0,0.0002564,2]
[356609553,1742814640260,-150.0,0.00025693,2]
[356609554,1742814640269,-150.0,0.00025732,2]
[356609555,1742814640279,-150.0,0.00025778,2]
[356609556,1742814640289,-150.0,0.00025778,2]
[356609557,1742814640299,-150.0,0.00025862,2]
[356609558,1742814640308,-150.0,0.0002756,2]
[356609559,1742814640318,-150.0,0.00027578,2]
[356609560,1742814640327,-150.0,0.00027622,2]
[356609561,1742814640336,-150.0,0.00027673,2]
[356609562,1742814640346,-150.0,0.00027691,2]
[356609563,1742814640357,-150.0,0.00027696,2]
[356609564,1742814640367,-150.0,0.00027702,2]
[356609565,1742814640376,-150.0,0.00027716,2]
[356609566,1742814640385,-150.0,0.00027723,2]
[356609567,1742814640395,-150.0,0.00027759,2]
[356609568,1742814640405,-150.0,0.00027759,2]
[356609569,1742814640415,-150.0,0.00027766,2]
[356609570,1742814640424,-150.0,0.00027856,2]
[356609571,1742814640437,-150.0,0.00027883,2]
[356609572,1742814640447,-150.0,0.00027888,2]
[356609573,1742814640456,-150.0,0.00027903,2]
[356609574,1742814640465,-150.0,0.00029586,2]
[356609575,1742814640475,-150.0,0.00029593,2]
[356609576,1742814640484,-150.0,0.00029604,2]
[356609577,1742814640494,-150.0,0.00029618,2]
[356609578,1742814640504,-150.0,0.00029686,2]
[356609579,1742814640514,-150.0,0.00029693,2]
[356609580,1742814640524,-150.0,0.00029716,2]
[356609581,1742814640534,-150.0,0.00029718,2]
[356609582,1742814640544,-150.0,0.00029732,2]
[356609583,1742814640553,-150.0,0.00029772,2]
[356609584,1742814640563,-150.0,0.00029791,2]
[356609585,1742814640572,-150.0,0.00029802,2]
[356609586,1742814640582,-150.0,0.00029818,2]
[356609587,1742814640591,-150.0,0.00029829,2]
[356609588,1742814640600,-150.0,0.00029849,2]
[356609589,1742814640610,-150.0,0.00029979,2]
[356609590,1742814640619,-150.0,0.00030738,2]
[356609591,1742814640629,-150.0,0.00030849,2]
[356609592,1742814640639,-150.0,0.00030885,2]
[356609593,1742814640649,-150.0,0.00030899,2]
[356609594,1742814640659,-150.0,0.00030912,2]
[356609595,1742814640670,-150.0,0.00030935,2]
[356609596,1742814640680,-150.0,0.00030964,2]
[356609597,1742814640690,-5266.10525218,0.0003099,3]
[356609598,1742814640711,-150.0,0.00025773,2]
[356609599,1742814640720,-150.0,0.00029582,2]
[356609600,1742814640730,-7334.63819126,0.0003099,3]
[356609601,1742814640741,-435.22115147,0.0003099,3]
[356609602,1742814640752,-17154.26680885,0.0003099,3]
[356609603,1742814640762,-1442.14652498,0.0003099,3]
[356609604,1742814640774,-69103.22081542,0.0003099,3]
[356609605,1742814640784,-224.15,0.0003099,2]
[356609606,1742814640794,-224.15,0.0003099,2]
[356609607,1742814640803,-198.0,0.00031,30]
[356609608,1742814640812,-1000.0,0.00031,120]
[356609609,1742814640822,-30700.0,0.00031,2]
[356609610,1742814640832,-750.0,0.00031,2]
[356609611,1742814640841,-20607.78783062,0.00031,2]
[356609612,1742814640853,-40766.02658079,0.00031,2]
[356609613,1742814640865,-151035.58558859,0.00031,2]
[356609614,1742814640874,-500.0,0.00031379,5]
[356609615,1742814640884,-224.15,0.0003141,2]
[356609616,1742814640895,-23515.1224468,0.0003142,3]
[356609617,1742814640904,-18769.67092415,0.0003143,4]
[356609618,1742814640914,-1000.0,0.000315,2]
[356609619,1742814640923,-150.0,0.00031506,2]
[356609620,1742814640933,-980.01440853,0.00031659,2]
[356609621,1742814640942,-2006.8532,0.00031685,3]
[356609622,1742814640951,-28991.047528,0.00031692,3]
[356609623,1742814640961,-167.66921336,0.00031702,2]
[356609624,1742814640971,-158.81782574,0.00031702,2]
[356609625,1742814640981,-838.88073389,0.00031702,2]
[356609626,1742814640991,-8466.93749813,0.00031702,2]
[356609627,1742814641001,-397.4751728,0.00031702,6]
[356609628,1742814641012,-156.15514474,0.00031702,2]
[356609629,1742814641021,-222.0,0.00031727,2]
[356609630,1742814641030,-224.15,0.0003175,2]
[356609631,1742814641040,-23515.1224468,0.0003176,3]
[356609632,1742814641050,-23515.1224468,0.0003177,3]
[356609633,1742814641060,-3658.3173713,0.0003178,2]
[356609634,1742814641069,-2832.539187,0.0003178,2]
[356609635,1742814641079,-2006.7610026,0.0003178,2]
[356609636,1742814641088,-1180.9828182,0.0003178,2]
[356609637,1742814641098,-355.2046339,0.0003178,2]
[356609638,1742814641107,-478.2974529,0.0003178,2]
[356609639,1742814641116,-478.2974529,0.0003178,2]
[356609640,1742814641125,-478.2974529,0.0003178,2]
[356609641,1742814641135,-478.2974529,0.0003178,2]
[356609642,1742814641144,-478.2974529,0.0003178,2]
[356609643,1742814641154,-438.556196,0.0003178,2]
[356609644,1742814641163,-438.556196,0.0003178,2]
[356609645,1742814641173,-438.556196,0.0003178,2]
[356609646,1742814641182,-438.556196,0.0003178,2]
[356609647,1742814641191,-438.556196,0.0003178,2]
[356609648,1742814641201,-6212.4737329,0.0003178,2]
[356609649,1742814641210,-4808.6343791,0.0003178,2]
[356609650,1742814641220,-3404.7950252,0.0003178,2]
[356609651,1742814641229,-2000.9556714,0.0003178,2]
[356609652,1742814641238,-597.1163176,0.0003178,2]
[356609653,1742814641247,-224.15,0.0003178,2]
[356609654,1742814641256,-28991.047528,0.00031782,3]
[356609655,1742814641266,-6479.64198767,0.0003179,3]
[356609656,1742814641287,-150.0,0.00027717,2]
[356609657,1742814641296,-237.29577866,0.0003,5]
[356609658,1742814641307,-210.70422134,0.0003,5]
[356609659,1742814641317,-437.31928937,0.0003179,3]
[356609660,1742814641336,-150.0,0.00027832,2]
[356609661,1742814641345,-150.0,0.00029747,2]
[356609662,1742814641357,-16598.16116976,0.0003179,3]
[356609663,1742814641367,-224.15,0.00031792,2]
[356609664,1742814641377,-224.15,0.00031792,2]
[356609665,1742814641387,-224.15,0.00031792,2]
[356609666,1742814641398,-224.15,0.00031792,2]
[356609667,1742814641407,-224.15,0.00031792,2]
[356609668,1742814641416,-224.15,0.00031792,2]
[356609669,1742814641426,-224.15,0.00031792,2]
[356609670,1742814641437,-224.15,0.00031792,2]
[356609671,1742814641446,-224.15,0.00031792,2]
[356609672,1742814641455,-224.15,0.00031792,2]
[356609673,1742814641465,-224.15,0.00031792,2]
[356609674,1742814641475,-224.15,0.00031792,2]
[356609675,1742814641484,-224.15,0.00031792,2]
[356609676,1742814641493,-224.15,0.00031792,2]
[356609677,1742814641502,-224.15,0.00031792,2]
[356609678,1742814641512,-224.15,0.00031792,2]
[356609679,1742814641521,-224.15,0.00031792,2]
[356609680,1742814641531,-224.15,0.00031792,2]
[356609681,1742814641541,-224.15,0.00031792,2]
[356609682,1742814641550,-224.15,0.00031792,2]
[356609683,1742814641560,-224.15,0.00031792,2]
[356609684,1742814641570,-224.15,0.00031792,2]